Cogmind - Beta 14 @@@ ROGUE MODE // 2024.09.20 @ 06:11:50 Player: Qusmin Result: Self-destructed Performance ------------- Evolutions (1) 500 Regions Visited (2) 400 Robots Destroyed (41) 205 Value Destroyed (927) 927 Prototype IDs (3) 60 Alien Tech Used (0) 0 Bonus (16) 16 TOTAL SCORE: 2108 Bonus ------- High Alert Combat Kills 16 Cogmind --------- Core Integrity 202/400 Matter 300/300 Energy 202/265 System Corruption 0% Temperature Danger (492) Movement Walking (125) Location -9/Materials Parts ------- > --- POWER (1) -------- Improved Ion Engine > --- PROPULSION (4) --- Aluminum Leg Aluminum Leg Aluminum Leg Titanium Leg > --- UTILITY (2) ------ Small Storage Unit > --- WEAPON (2) ------- Spread Laser Precision Beam Rifle > --- INVENTORY (8) ---- Improved Ion Engine Aluminum Leg Titanium Leg Titanium Leg Titanium Leg Large Matter Pod (150) Medium Laser Precision Beam Rifle Peak State ------------ > --- POWER ------------ Improved Ion Engine > --- PROPULSION ------- Titanium Leg Titanium Leg Titanium Leg Titanium Leg > --- UTILITY ---------- Small Storage Unit Particle Charger > --- WEAPON ----------- Precision Beam Rifle Improved Light Cannon > --- INVENTORY -------- Aluminum Leg Aluminum Leg Aluminum Leg Aluminum Leg Large Matter Pod Particle Charger Medium Laser Precision Beam Rifle [Rating: 25] Favorites ----------- Power Light Ion Engine Engine Light Ion Engine Propulsion Aluminum Leg Leg Aluminum Leg Utility Small Storage Unit Device Particle Charger Storage Small Storage Unit Processor Targeting Computer Weapon Assault Rifle Energy Gun Medium Laser Ballistic Gun Assault Rifle Ballistic Cannon Improved Light Cannon Build | -11 -10 -9 ------- Run | Yrd Mat Mat Slots Evolved 2 | . . 2 Power . | . . . Propulsion 2 | . . 2 Utility . | . . . Weapon . | . . . Parts Attached 38 | 7 14 17 Power 5 | 1 2 2 Engine 5 | 1 2 2 Core . | . . . Reactor . | . . . Propulsion 13 | 2 2 9 Treads . | . . . Leg 13 | 2 2 9 Wheel . | . . . Hover . | . . . Flight . | . . . Utility 5 | 1 2 2 Device 3 | . 1 2 Storage 1 | 1 . . Processor 1 | . 1 . Hackware . | . . . Protection . | . . . Artifact . | . . . Weapon 15 | 3 8 4 Energy Gun 8 | 1 4 3 Energy Cannon . | . . . Ballistic Gun 6 | 2 4 . Ballistic Cannon 1 | . . 1 Launcher . | . . . Special Weapon . | . . . Impact Weapon . | . . . Slashing Weapon . | . . . Piercing Weapon . | . . . Special Melee Weapon . | . . . Unidentified Prototypes 1 | . . 1 Parts Lost 7 | . 4 3 Power 1 | . . 1 Propulsion 2 | . 2 . Utility 1 | . . 1 Weapon 3 | . 2 1 Highest Loss Streak 2 | . 2 2 To Critical Strikes . | . . . Average Slot Usage (%) 96 | . 94 98 Engine 12 | . 14 10 Leg 35 | . 27 44 Device 6 | . 3 9 Storage 12 | . 14 11 Processor 4 | . 6 1 Energy Gun 12 | . 9 15 Ballistic Gun 9 | . 18 . Ballistic Cannon 2 | . . 5 Peak Build Rating 25 | 6 7 25 Average Rating 11 | 4 6 18 On Entrance 4 | . 6 7 Naked Turns . | . . . Heaviest Build 21 | 14 14 21 Greatest Support 68 | 20 20 68 Greatest Overweight (x) 1 | . 1 . Average Overweight (x) . | . . . Largest Inventory Capacity 8 | 8 8 8 Average Capacity 7 | 7 8 8 Most Carried 8 | 6 8 8 Average Carried 7 | 3 7 7 Final Capacity 8 | 8 8 8 Final Carried 8 | 6 8 8 Class Distribution -------------------- 100% | Mutant Dominant Class ---------------- Mutant | -10/Materials Mutant | -9/Materials Resources | -11 -10 -9 ----------- Run | Yrd Mat Mat Matter Collected 953 | 236 467 250 Remotely . | . . . Salvage Created 1118 | . 608 510 Parts 83 | . 45 38 Haulers Intercepted . | . . . Recyclers Shooed 5 | . 4 1 Parts Field Recycled . | . . . Retrieved Matter . | . . . Parts Self-Destructed . | . . . Prevented . | . . . Kills | -11 -10 -9 ------- Run | Yrd Mat Mat Combat Hostiles Destroyed 35 | . 17 18 Guns 29 | . 17 12 Cannons 6 | . . 6 Classes Destroyed 8 | . 6 2 Builder 1 | . 1 . Recycler 1 | . 1 . Operator 1 | . 1 . Watcher 3 | . 2 1 Swarmer 16 | . 9 7 Grunt 15 | . 8 7 Duelist 1 | . . 1 Sentry 3 | . . 3 Best Kill Streak 6 | . 6 4 Combat Bots Only 5 | . 5 4 Max Kills in Single Turn 1 | . 1 1 Gunslinging . | . . . Exploded . | . . . Melee . | . . . Uniques/NPCs Destroyed . | . . . Combat | -11 -10 -9 -------- Run | Yrd Mat Mat Hostile Shots Fired 194 | . 113 81 Missed 54 | . 33 21 Damage Taken 1595 | . 880 715 Core 324 | . 126 198 Absorbed by Shields . | . . . Core Remaining (%) 74 | 100 49 . Volleys Fired 104 | . 65 39 Largest 2 | . 2 2 Hottest 126 | . 70 126 Shots Fired 196 | . 124 72 Gun 176 | . 124 52 Cannon 20 | . . 20 Launcher . | . . . Special . | . . . Kinetic 107 | . 87 20 Thermal 89 | . 37 52 Explosive . | . . . Electromagnetic . | . . . Robot Hit Streak 9 | . 9 9 Robot Miss Streak 3 | . 3 3 Penetration Max . | . . . Secondary Targets 6 | . 5 1 Max Gunslinging Chain 1 | . 1 1 Shots Hit Robots 133 | . 77 56 Core Hits 74 | . 33 41 Critical Kills . | . . . Critical Parts Destroyed . | . . . Critical Strikes 2 | . 2 . Burn 2 | . 2 . Melee Attacks . | . . . Impact . | . . . Slashing . | . . . Piercing . | . . . Sneak Attacks . | . . . Combat Hostiles . | . . . Follow-up Attacks . | . . . Damage Inflicted 1909 | . 899 1010 Guns 1671 | . 882 789 Cannons 213 | . . 213 Explosions . | . . . Melee . | . . . Ramming 25 | . 17 8 Kinetic 794 | . 581 213 Thermal 1090 | . 301 789 Explosive . | . . . Electromagnetic . | . . . Impact . | . . . Slashing . | . . . Piercing . | . . . Highest Corruption . | . . . Average Corruption . | . . . Corruption Purged . | . . . Corruption Blocked . | . . . Overload Shots . | . . . Overflow Damage . | . . . Projectiles . | . . . Explosions . | . . . Melee . | . . . Knockbacks . | . . . Impact . | . . . Kinetic . | . . . Secondary . | . . . Self-Inflicted Damage . | . . . Shots . | . . . Rammed . | . . . Targets Rammed 6 | . 4 2 Kicked 6 | . 4 2 Crushed . | . . . Highest Temperature 580 | . 189 580 Average Temperature 102 | . 44 154 Received Heat Transfer 477 | . 276 201 Effects 14 | . . 14 Shutdowns 2 | . . 2 Energy Bleed 1 | . . 1 Interference 2 | . . 2 Short Circuit 3 | . . 3 Damage (major) 5 | . . 5 Damage (core) 1 | . . 1 Siege Activations . | . . . Robots Corrupted . | . . . Combat Hostiles . | . . . Parts Fried . | . . . Impact Corruptions . | . . . Robots Melted . | . . . Combat Hostiles . | . . . Parts Melted 3 | . 1 2 Heat Transferred 2424 | . 1036 1388 Parts Sabotaged . | . . . Parts Stolen . | . . . Parts Stripped . | . . . Power Chain Reactions . | . . . Alert | -11 -10 -9 ------- Run | Yrd Mat Mat Peak Influence 481 | . 240 481 Initial 66 | . . 66 Average 173 | . 106 275 Maximum Alert Level 2 | . 1 2 Low Security (%) 64 | 100 94 26 Level 1 33 | . 5 69 Level 2 1 | . . 4 Level 3 . | . . . Level 4 . | . . . Level 5 . | . . . High Security . | . . . Max Security . | . . . Squads Dispatched 6 | . 3 3 Investigation 3 | . 1 2 Extermination . | . . . Reinforcement 3 | . 2 1 Assault . | . . . Garrison . | . . . Intercept . | . . . Searches Triggered . | . . . Construction Impeded . | . . . Haulers Reinforced . | . . . Active Scanning Responses . | . . . Cargo Convoy Interrupts . | . . . Stealth | -11 -10 -9 --------- Run | Yrd Mat Mat Distress Signals 1 | . 1 . Communications Jammed . | . . . Distress Signals . | . . . Times Spotted 49 | . 23 26 Peak Tracking Total 6 | . 4 6 Tactical Retreats 6 | . 2 4 Traps | -11 -10 -9 ------- Run | Yrd Mat Mat Traps Triggered . | . . . Indirectly . | . . . Trap Hack Attempts . | . . . Triggered . | . . . Disarmed . | . . . Reprogrammed . | . . . Reused . | . . . Traps Extracted . | . . . Installed . | . . . Triggered . | . . . Machines | -11 -10 -9 ---------- Run | Yrd Mat Mat Machines Disabled . | . . . Max in Single Turn . | . . . Machines Repaired . | . . . Machines Dismantled . | . . . Machines Sabotaged . | . . . Overloaded Fab Kills . | . . . Hacking | -11 -10 -9 --------- Run | Yrd Mat Mat Machines Accessed 3 | . 1 2 Terminals 3 | . 1 2 Fabricators . | . . . Repair Stations . | . . . Recycling Units . | . . . Scanalyzers . | . . . Garrison Access . | . . . Total Hacks 14 | . 3 11 Successful 4 | . . 4 Failed 10 | . 3 7 Catastrophic 2 | . 1 1 Database Lockouts . | . . . Manual 2 | . . 2 Terminals 14 | . 3 11 Fabricators . | . . . Repair Stations . | . . . Recycling Units . | . . . Scanalyzers . | . . . Garrison Access . | . . . Terminal Hacks 4 | . . 4 Record 1 | . . 1 Prototype ID Bank 1 | . . 1 Transport Status 1 | . . 1 Hauler Manifests 1 | . . 1 Fabricator Hacks . | . . . Repair Station Hacks . | . . . Recycling Unit Hacks . | . . . Scanalyzer . | . . . Garrison Access Hacks . | . . . Unauthorized Hacks . | . . . Terminals . | . . . Fabricators . | . . . Repair Stations . | . . . Recycling Units . | . . . Scanalyzers . | . . . Garrison Access . | . . . Data Cores Recovered . | . . . Used . | . . . Hacking Detections 3 | . 1 2 Full Trace Events 3 | . 1 2 Feedback Events . | . . . Feedback Blocked . | . . . Robot Schematics Acquired . | . . . Robots Built . | . . . Authchips . | . . . Time . | . . . Total Robot Build Rating . | . . . Part Schematics Acquired . | . . . Parts Built . | . . . Authchips . | . . . Time . | . . . Total Part Build Rating . | . . . Parts Repaired . | . . . Time . | . . . Parts Recycled . | . . . Recycled Matter . | . . . Retrieved Matter . | . . . Retrieved Components . | . . . Parts Scanalyzed . | . . . Part Schematics Acquired . | . . . Parts Damaged . | . . . Bothacking | -11 -10 -9 ------------ Run | Yrd Mat Mat Used RIF Installer . | . . . Robots Hacked . | . . . Non-combat . | . . . Combat . | . . . Robot Hacks Applied . | . . . Relay Couplers Released . | . . . Fabnet Peak Effective % . | . . . Robots Rewired . | . . . Allies Hacked . | . . . Hacks Repelled . | . . . Allies | -11 -10 -9 -------- Run | Yrd Mat Mat Total Allies . | . . . Largest Group . | . . . Highest-Rated Group . | . . . Highest-Rated Ally . | . . . Total Orders . | . . . Ally Attacks . | . . . Total Damage . | . . . Kills . | . . . Allies Corrupted . | . . . Allies Melted . | . . . Intel | -11 -10 -9 ------- Run | Yrd Mat Mat Robot Analysis Total . | . . . Derelict Logs Recovered . | . . . Drone Launches . | . . . Drone Recoveries . | . . . Exploration | -11 -10 -9 ------------- Run | Yrd Mat Mat Turns Passed 1806 | 112 904 790 Spaces Moved 1080 | 89 546 445 Core 19 | 19 . . Treads . | . . . Legs 1061 | 70 546 445 Wheels . | . . . Hover . | . . . Flight . | . . . Fastest Speed 50 | 50 120 120 Average Speed 120 | 105 120 123 Slowest Speed 190 | 120 190 130 Overloaded Moves . | . . . Propulsion Burnouts . | . . . Robots Hopped . | . . . Cave-ins Triggered . | . . . Exploration Rate (%) 38 | 4 68 43 Regions Visited 2 Branch Regions . Pre-discovered Areas . | . . . Known Exits Taken . | . . . Unknown Exits Taken 2 | 1 1 . Scrap Searched . | . . . Spaces Dug . | . . . Terrain Destroyed 2 | . . 2 Melee . | . . . Projectile 2 | . . 2 AOE . | . . . Terrain Rammed . | . . . Walls Destroyed . | . . . Machines Disabled . | . . . Actions | -11 -10 -9 --------- Run | Yrd Mat Mat Total 1392 | 107 674 611 Wait 123 | . 25 98 Move 1078 | 88 545 445 Hop . | . . . Pick Up 30 | 12 13 5 Fast Attach 2 | . 1 1 Attach 13 | 6 4 3 Detach . | . . . Swap 23 | 1 9 13 Drop 13 | . 8 5 Fire 104 | . 65 39 Melee . | . . . Ram . | . . . Kick 6 | . 4 2 Crush . | . . . Escape Stasis . | . . . Rewire . | . . . Trap . | . . . Miscellaneous . | . . . Route ------- -11/Scrapyard -10/Materials (discovered 2 exits: *Mat x2) -9/Materials (discovered 3 exits: [*Mat x2] / [*Min]) History --------- Turn | Location | Event 23 | -11/Scrapyard | Discovered new exit (range 15) 113 | -11/Scrapyard | Entered Materials 279 | -10/Materials | Discovered new exit (range 10) 318 | -10/Materials | Build established: Mutant 583 | -10/Materials | Discovered new exit (range 9) 994 | -10/Materials | Core integrity fell below 50% 1017 | -10/Materials | Entered another Materials area 1017 | -9/Materials | Evolved 2 slots: Propulsion x2 1019 | -9/Materials | Discovered new exit (range 8) 1418 | -9/Materials | Discovered new exit (range 11) 1774 | -9/Materials | Discovered new exit (range 11) 1807 | -9/Materials | Self-destructed Last Messages --------------- 01798_ Overheating: Titanium Leg damaged (-56). 01798_ Overheating: Spread Laser damaged (-13). 01798_ Overheating: Prc. Beam Rifle damaged (-38). 01798_ Overheating: Particle Charger damaged (-3). 01799_ Power failure, Imp. Ion Engine shutdown. 01799_ Particle Charger broken. 01799_ Overheating: Short circuit. 01800_ Overheating: Sml. Storage Unit damaged (-20). 01801_ Overheating: System interference. 01801_ Spread Laser temporarily disabled. 01801_ Prc. Beam Rifle temporarily disabled. 01803_ Overheating: Core damaged (-40). 01804_ Broken Particle Charger destroyed. 01806_ Power failure, Imp. Ion Engine shutdown. 01806_ Aluminum Leg broken. 01806_ Overheating: Short circuit. 01807_ Y-45 Defender heat spikes uncontrollably. Map ----- +----------------------------------------------------+ | | | | | | | | | | | | | | | | | | | ?????????????????????????????????????????????????? | | ?????????????????????????????????????????????????? | | ?????????????????????????????????????????????????? | | ?????????????????????????????????????????????????? | | ?????????????????????????????????????????????????? | | ?????????????????????????????????????????????????? | | ?????????????????????????????????????????????????? | | ?????????????????????????????????????????????????? | | ?????????????????????????????????????????????????? | | ?????????????????????????????????????????????????? | | ???????????????????????###########???????????????? | | ?????????????????#####?# #???????????????? | | ???????????###/### # """ """ #??##+###+#?????? | | ??????????# # """ """ #??# #???### | | ??????????# < Y """ """ #### #???# | | ??????????# # " """ + #???# | | ??????????# ###### # @ *%% ### #???# | | ?????????????????## ?# =* #?# #???# | | ??????????????????# ?# ### #???# | | ??????????????????# ############T# #???### | | ??????????????????# ^ ####### | | ??????????????????# | | ??????????????????# | | ??????????????????# | | ?????????????????????####+######+### ######### | | ?????????????????????????????? ##T####???????? | | ????????????????????????????# """ ####??????????? | | ????????????????????????????# """ #?????????????? | | ????????????????????????????# """ #?????????????? | | ????????????????????????????# #?????????????? | | ????????????????????????????# #?????????????? | | ????????????????????????????########?????????????? | | ?????????????????????????????????????????????????? | | ?????????????????????????????????????????????????? | | ?????????????????????????????????????????????????? | | ?????????????????????????????????????????????????? | | ?????????????????????????????????????????????????? | | ?????????????????????????????????????????????????? | | ????????????????????????????????????????????????+ | | ????????????????????????????????????????????????# | | ????????????????????????????????????????????????# | +----------------------------------------------------+ Best States ------------- Heat Dissipation 35 Energy Generation 12 Energy Capacity 265 Matter Stores 300 Matter Capacity 300 Sight Range 16 Terrain Scan Density 10 Evasion (%) 55 Targeting Accuracy 5 Particle Charging 15 Item Schematics ----------------- None Robot Schematics ------------------ None Fabricated ------------ Nothing Alien Tech Used ----------------- None Achievements -------------- Hey, That's Mine! Shopping List Challenges ------------ None Game ------ Seed ArcAdvancedExpander Manual? 0 Play Time 00:25:16 Cumulative 2.9 hours Start 2024.09.20 @ 03:58:05 End 2024.09.20 @ 06:11:50 Sessions 3 Manual Loads 0 Difficulty Rogue Special Mode None Game No. 3 Rogue 3 Adventurer 0 Explorer 0 Win Type - Total 0 Types 0/0/0/0/0/0/0/0/0 Lore% 2 Gallery% 6 Achievement% 8 Wizard Run 0 Options --------- Layout 1 ASCII 0 Keyboard 0 Movement Numpad Keybinds 0 Fullscreen 2 Font 24/Smallcaps Map View 50x35 Zoom Use 0% Tactical HUD 1 Map Filters NONE Filters NONE Steam 1 RUN: 9efefe20-b0be-44fa-a568-abef9b00a24a